bitfinex/quotes_SOLUSD_20230120
["timestamp","ask_amount","ask_price","bid_price","bid_amount"]
[1674230471309,20.0,21.426,21.411,10.0]
[1674230471517,35.01,21.425,21.411,10.0]
[1674230471730,20.0,21.424,21.411,10.0]
[1674230472262,20.0,21.426,21.411,10.0]
[1674230472592,35.01,21.425,21.411,10.0]
[1674230472794,20.0,21.424,21.411,10.0]
[1674230472981,35.01,21.427,21.413,23.75576951]
[1674230473326,35.01,21.427,21.414,10.0]
[1674230473522,35.01,21.427,21.416,10.0]
[1674230474570,0.96,21.426,21.416,10.0]
[1674230481626,35.01,21.425,21.416,10.0]
[1674230481838,35.01,21.427,21.416,10.0]
[1674230482148,0.96,21.426,21.416,10.0]
[1674230482358,117.7249,21.428,21.416,45.03]
[1674230482559,35.0,21.434,21.417,17.0]
[1674230482769,20.0,21.433,21.417,17.0]
[1674230482975,35.0,21.432,21.418,10.0]
[1674230483181,20.0,21.431,21.418,10.0]
[1674230483389,35.0,21.43,21.418,10.0]
[1674230483720,20.0,21.429,21.418,10.0]
[1674230484565,20.0,21.433,21.418,10.0]
[1674230484776,35.0,21.432,21.418,10.0]
[1674230484968,20.0,21.431,21.418,10.0]
[1674230485183,35.0,21.43,21.418,10.0]
[1674230485393,20.0,21.429,21.418,10.0]
[1674230485621,35.01,21.428,21.418,10.0]
[1674230485928,20.0,21.429,21.418,10.0]
[1674230486121,20.0,21.432,21.418,10.0]
[1674230486333,35.0,21.431,21.418,10.0]
[1674230486538,20.0,21.43,21.418,10.0]
[1674230486749,35.01,21.429,21.418,10.0]
[1674230487590,20.0,21.43,21.419,17.0]
[1674230487817,35.0,21.434,21.42,10.0]
[1674230488013,35.0,21.434,21.421,17.0]
[1674230488014,20.0,21.433,21.421,17.0]
[1674230488348,35.0,21.432,21.422,10.0]
[1674230488658,20.0,21.431,21.422,10.0]
[1674230489274,20.0,21.433,21.422,10.0]
[1674230489484,35.0,21.432,21.422,10.0]
[1674230489708,20.0,21.431,21.422,10.0]
[1674230490248,20.0,21.433,21.423,17.0]
[1674230490456,20.0,21.436,21.424,10.0]
[1674230490764,35.0,21.435,21.425,17.0]
[1674230490959,20.0,21.434,21.425,17.0]
[1674230491169,20.0,21.434,21.424,10.0]
[1674230491378,35.0,21.433,21.424,10.0]
[1674230491591,20.0,21.432,21.424,10.0]
[1674230492017,20.0,21.432,21.422,10.0]
[1674230492235,20.0,21.436,21.422,10.0]
[1674230492433,35.0,21.435,21.421,10.0]
[1674230492634,20.0,21.434,21.421,10.0]
[1674230492850,35.96,21.433,21.421,10.0]
[1674230493187,20.0,21.432,21.421,10.0]
[1674230493393,35.0,21.431,21.421,10.0]
[1674230493608,20.96,21.43,21.421,10.0]
[1674230493797,35.01,21.429,21.421,10.0]
[1674230494008,20.0,21.43,21.421,10.0]
[1674230494221,20.0,21.436,21.421,10.0]
[1674230494424,35.0,21.435,21.421,10.0]
[1674230494649,20.0,21.434,21.421,10.0]
[1674230494868,35.0,21.433,21.421,10.0]
[1674230495177,20.0,21.432,21.421,10.0]
[1674230495389,35.0,21.431,21.416,10.0]
[1674230495604,20.0,21.43,21.416,10.0]
[1674230495797,35.01,21.429,21.416,10.0]
[1674230497048,0.96,21.428,21.416,10.0]
[1674230497259,35.01,21.427,21.416,10.0]
[1674230497690,20.0,21.43,21.416,10.0]
[1674230497691,35.01,21.429,21.418,10.0]
[1674230497901,20.0,21.43,21.419,17.0]
[1674230498102,20.0,21.432,21.42,10.0]
[1674230498317,20.0,21.437,21.421,17.0]
[1674230498542,34.99,21.436,21.422,10.0]
[1674230498748,20.0,21.435,21.423,17.0]
[1674230498942,35.0,21.434,21.423,17.0]
[1674230499147,20.0,21.433,21.423,17.0]
[1674230500011,20.0,21.437,21.423,17.0]
[1674230500220,34.99,21.436,21.423,17.0]
[1674230500410,20.0,21.435,21.423,17.0]
[1674230500622,35.0,21.434,21.423,17.0]
[1674230500832,20.0,21.433,21.423,17.0]
[1674230501266,20.0,21.433,21.42,10.0]
[1674230501492,35.0,21.432,21.42,10.0]
[1674230501672,20.0,21.431,21.42,10.0]
[1674230501883,35.0,21.43,21.42,10.0]
[1674230502095,20.0,21.429,21.42,10.0]
[1674230502529,20.0,21.429,21.421,17.0]
[1674230502747,10.0,21.436,21.42,10.0]
[1674230502961,55.0,21.435,21.42,10.0]
[1674230507792,35.0,21.435,21.42,10.0]
[1674230508002,34.99,21.438,21.421,35.02]
[1674230508439,34.99,21.438,21.422,10.0]
[1674230508839,34.99,21.438,21.423,17.0]
[1674230509053,34.99,21.438,21.424,10.0]
[1674230509366,0.96,21.437,21.425,17.0]
[1674230509574,34.99,21.436,21.425,17.0]
[1674230510124,34.99,21.438,21.424,10.0]
[1674230512964,88.31793946,21.438,21.424,10.0]
[1674230513157,37.0,21.437,21.424,10.0]
[1674230513370,35.95,21.436,21.424,10.0]
[1674230513583,20.0,21.435,21.424,10.0]
[1674230513789,35.0,21.434,21.424,10.0]
[1674230514013,20.0,21.433,21.424,10.0]
[1674230514228,35.0,21.432,21.424,10.0]
[1674230514431,20.0,21.431,21.424,10.0]
[1674230514645,34.99,21.437,21.425,17.0]
[1674230514854,34.99,21.437,21.426,10.0]
[1674230515474,34.99,21.438,21.426,10.0]
[1674230515684,34.99,21.438,21.427,17.0]
[1674230516105,108.1951,21.439,21.427,17.0]
[1674230516315,108.1951,21.439,21.428,10.0]
[1674230516525,108.1951,21.439,21.429,17.0]
[1674230516746,0.96,21.438,21.429,17.0]
[1674230517175,108.1951,21.439,21.429,17.0]
[1674230517579,108.1951,21.439,21.43,10.0]
[1674230517786,108.1951,21.439,21.431,17.0]
[1674230518223,108.1951,21.439,21.428,10.0]
[1674230518441,108.1951,21.439,21.426,10.0]
[1674230518752,34.99,21.438,21.426,10.0]
[1674230520204,34.99,21.438,21.423,35.02]
[1674230520516,34.99,21.438,21.42,10.0]
[1674230520517,10.0,21.437,21.421,45.02]
[1674230520742,35.95,21.436,21.421,10.0]
[1674230522220,20.0,21.435,21.421,10.0]
[1674230522413,35.0,21.434,21.421,10.0]
[1674230522736,20.0,21.433,21.421,10.0]
[1674230522949,35.0,21.432,21.421,10.0]
[1674230523139,20.0,21.431,21.421,10.0]
[1674230523776,20.0,21.435,21.421,10.0]
[1674230523987,35.0,21.434,21.422,17.0]
[1674230524205,20.0,21.433,21.423,10.0]
[1674230524410,20.0,21.433,21.424,17.0]
[1674230524623,35.0,21.432,21.424,17.0]
[1674230524953,20.0,21.431,21.424,17.0]
[1674230525156,20.0,21.433,21.424,17.0]
[1674230525354,20.0,21.435,21.424,17.0]
[1674230525560,35.0,21.434,21.424,17.0]
[1674230525893,54.88793946,21.437,21.424,52.01]
[1674230526112,34.99,21.438,21.424,52.01]
[1674230526312,34.99,21.438,21.424,17.0]
[1674230526519,0.96,21.437,21.425,10.0]
[1674230526726,0.96,21.437,21.426,17.0]
[1674230526937,0.96,21.437,21.427,10.0]
[1674230527147,0.96,21.437,21.428,17.0]
[1674230527683,0.96,21.437,21.427,10.0]
[1674230527882,0.96,21.437,21.425,10.0]
[1674230528288,10.0,21.435,21.42,10.0]
[1674230528499,55.0,21.434,21.42,10.0]
[1674230530002,10.0,21.433,21.42,10.0]
[1674230530190,55.0,21.432,21.42,10.0]
[1674230530401,109.88793946,21.432,21.42,10.0]
[1674230531031,0.96,21.431,21.42,10.0]
[1674230531248,35.0,21.43,21.42,10.0]
[1674230531446,20.0,21.429,21.42,10.0]
[1674230531660,0.96,21.428,21.42,10.0]
[1674230532311,20.0,21.43,21.42,10.0]
[1674230533553,20.0,21.43,21.421,17.0]
[1674230533763,54.88793946,21.432,21.422,10.0]
[1674230533764,55.0,21.431,21.422,10.0]
[1674230534518,0.96,21.43,21.422,10.0]
[1674230535250,426.82664725,21.447,21.423,17.0]
[1674230535571,426.82664725,21.447,21.424,45.01]
[1674230535765,34.98,21.443,21.425,17.0]
[1674230535984,108.1951,21.439,21.425,17.0]
[1674230536189,108.1951,21.439,21.426,10.0]
[1674230536412,108.1951,21.439,21.427,17.0]
[1674230536801,0.96,21.438,21.427,17.0]
[1674230541659,0.96,21.438,21.428,10.0]
[1674230541878,0.96,21.438,21.429,17.0]
[1674230543344,0.96,21.438,21.428,10.0]
[1674230543555,35.95,21.438,21.426,10.0]
[1674230545326,108.1951,21.439,21.426,10.0]
[1674230545552,108.1951,21.439,21.427,17.0]
[1674230545872,108.1951,21.439,21.428,10.0]
[1674230546083,143.1851,21.439,21.429,17.0]
[1674230546292,108.1951,21.439,21.429,17.0]
[1674230546691,0.96,21.438,21.429,17.0]
[1674230547450,0.96,21.438,21.43,10.0]
[1674230547684,0.96,21.438,21.431,17.0]
[1674230548398,0.96,21.438,21.43,10.0]
[1674230548803,0.96,21.438,21.426,10.0]
[1674230549018,34.99,21.437,21.426,10.0]
[1674230549349,108.1951,21.439,21.427,35.01]
[1674230549744,108.1951,21.439,21.428,10.0]
[1674230550163,108.1951,21.439,21.43,10.0]
[1674230550503,108.1951,21.439,21.431,17.0]
[1674230550688,0.96,21.438,21.431,17.0]
[1674230551231,0.96,21.438,21.43,10.0]
[1674230551458,0.96,21.438,21.431,17.0]
[1674230553134,0.96,21.438,21.43,10.0]
[1674230554291,14.75,21.44,21.43,10.0]
[1674230554481,20.0,21.439,21.431,17.0]
[1674230554913,20.0,21.439,21.432,10.0]
[1674230555122,34.98,21.443,21.432,10.0]
[1674230555123,20.0,21.442,21.433,17.0]
[1674230555546,20.0,21.442,21.434,10.0]
[1674230555742,20.3,21.444,21.435,17.0]
[1674230556586,0.3,21.444,21.435,17.0]
[1674230556801,34.98,21.443,21.435,17.0]
[1674230557136,20.96,21.442,21.435,17.0]
[1674230559743,20.96,21.442,21.434,10.0]
[1674230559952,20.96,21.442,21.435,17.0]
[1674230562182,0.96,21.442,21.435,17.0]
[1674230562729,0.3,21.444,21.436,10.0]
[1674230562913,0.3,21.444,21.437,17.0]
[1674230563534,0.3,21.444,21.438,10.0]
[1674230563737,0.3,21.444,21.439,17.0]
[1674230563954,0.3,21.444,21.44,10.0]
[1674230564163,0.3,21.444,21.441,17.0]
[1674230564382,0.3,21.444,21.442,10.0]
[1674230564583,0.3,21.444,21.443,17.0]
[1674230565231,34.96,21.457,21.443,17.0]
[1674230565439,34.96,21.459,21.443,17.0]
[1674230565631,20.0,21.458,21.444,10.0]
[1674230565844,34.96,21.457,21.445,17.0]
[1674230566054,20.0,21.456,21.445,17.0]
[1674230566266,34.96,21.455,21.445,17.0]
[1674230566595,20.0,21.454,21.445,17.0]
[1674230566796,0.96,21.453,21.446,10.0]
[1674230567007,0.96,21.453,21.447,17.0]
[1674230567862,20.0,21.456,21.447,17.0]
[1674230568072,0.96,21.455,21.447,17.0]
[1674230568577,0.96,21.454,21.447,17.0]
[1674230568781,20.0,21.456,21.447,17.0]
[1674230568992,0.96,21.455,21.447,17.0]
[1674230569417,0.96,21.455,21.448,10.0]
[1674230569628,0.96,21.454,21.449,17.0]
[1674230569838,34.96,21.457,21.449,17.0]
[1674230570070,20.96,21.456,21.449,17.0]
[1674230570694,20.0,21.455,21.449,17.0]
[1674230571097,0.96,21.454,21.449,17.0]
[1674230571752,20.0,21.456,21.449,17.0]
[1674230571961,0.96,21.455,21.449,17.0]
[1674230573216,0.96,21.455,21.45,10.0]
[1674230576159,0.96,21.455,21.448,10.0]
[1674230578682,0.96,21.455,21.449,17.0]
[1674230582995,34.96,21.459,21.449,17.0]
[1674230583186,14.71,21.46,21.449,17.0]
[1674230583705,14.71,21.46,21.45,10.0]
[1674230583917,14.71,21.46,21.451,17.0]
[1674230584548,0.96,21.459,21.451,17.0]
[1674230584983,0.96,21.459,21.446,10.0]
[1674230585389,10.0,21.457,21.443,34.98]
[1674230585620,14.85,21.45,21.441,44.99]
[1674230586659,14.85,21.45,21.437,34.99]
[1674230586873,14.85,21.45,21.435,35.0]
[1674230587199,14.85,21.45,21.437,34.99]
[1674230588044,14.85,21.45,21.442,10.0]
[1674230588253,14.85,21.45,21.443,17.0]
[1674230588773,20.0,21.449,21.443,17.0]
[1674230588956,20.0,21.449,21.437,34.99]
[1674230589189,20.0,21.449,21.435,35.0]
[1674230589399,20.0,21.449,21.437,34.99]
[1674230590460,20.0,21.449,21.442,10.0]
[1674230590659,20.0,21.449,21.443,17.0]
[1674230590872,20.0,21.449,21.444,10.0]
[1674230591087,20.0,21.449,21.445,17.0]
[1674230591714,20.0,21.457,21.445,17.0]
[1674230592047,35.92,21.456,21.445,17.0]
[1674230592260,20.0,21.455,21.445,17.0]
[1674230592470,34.97,21.454,21.445,17.0]
[1674230592682,20.0,21.453,21.445,17.0]
[1674230593087,20.0,21.453,21.442,10.0]
[1674230593292,14.85,21.45,21.442,10.0]
[1674230593522,20.0,21.449,21.442,10.0]
[1674230594778,20.0,21.449,21.444,10.0]
[1674230594988,20.0,21.449,21.445,17.0]
[1674230595310,20.0,21.451,21.445,17.0]
[1674230595707,20.0,21.457,21.445,17.0]
[1674230595940,34.96,21.456,21.445,17.0]
[1674230596137,20.0,21.455,21.445,17.0]
[1674230596345,34.97,21.454,21.445,17.0]
[1674230596553,20.0,21.453,21.445,17.0]
[1674230596859,0.96,21.452,21.445,17.0]
[1674230597177,0.96,21.452,21.444,10.0]
[1674230597389,34.97,21.451,21.444,10.0]
[1674230597711,35.81,21.45,21.442,10.0]
[1674230598779,34.85,21.45,21.442,10.0]
[1674230598964,20.0,21.45,21.442,10.0]
[1674230599185,20.0,21.456,21.442,10.0]
[1674230599397,34.96,21.455,21.442,10.0]
[1674230599611,20.0,21.454,21.443,17.0]
[1674230599921,34.97,21.453,21.442,10.0]
[1674230600133,20.0,21.452,21.442,10.0]
[1674230600549,0.96,21.451,21.442,10.0]
[1674230601395,0.96,21.451,21.443,17.0]
[1674230603206,34.97,21.45,21.443,17.0]
[1674230603388,20.0,21.449,21.443,17.0]
[1674230603598,0.96,21.448,21.443,17.0]
[1674230603809,0.96,21.448,21.442,10.0]
[1674230604225,54.97,21.452,21.443,17.0]
[1674230604439,20.0,21.452,21.443,17.0]
[1674230605175,54.97,21.452,21.443,17.0]
[1674230605388,20.0,21.452,21.443,17.0]
[1674230606438,54.97,21.452,21.443,17.0]
[1674230608023,0.96,21.451,21.443,17.0]
[1674230610438,19.74,21.45,21.442,10.0]
[1674230610644,54.97,21.449,21.439,10.0]
[1674230610873,0.96,21.448,21.438,10.0]
[1674230611059,34.98,21.447,21.438,10.0]
[1674230611273,34.98,21.447,21.437,10.0]
[1674230611479,34.97,21.448,21.437,10.0]
[1674230612011,34.97,21.448,21.434,45.0]
[1674230612339,20.0,21.447,21.434,10.0]
[1674230612547,34.98,21.446,21.434,10.0]
[1674230612741,20.0,21.445,21.434,10.0]
[1674230613158,20.0,21.446,21.434,10.0]
[1674230613481,34.98,21.445,21.435,17.0]
[1674230613698,20.0,21.444,21.435,17.0]
[1674230614225,0.96,21.443,21.435,17.0]
[1674230614424,34.98,21.445,21.435,17.0]
[1674230614636,20.96,21.444,21.435,17.0]
[1674230615265,20.0,21.443,21.435,17.0]
[1674230615470,34.98,21.445,21.436,23.75576951]
[1674230615685,423.53882508,21.466,21.437,51.99]
[1674230615686,113.4254,21.45,21.437,51.99]
[1674230615896,20.0,21.449,21.438,10.0]
[1674230616105,20.0,21.449,21.439,17.0]
[1674230616963,20.0,21.449,21.44,10.0]
[1674230617158,20.0,21.449,21.441,17.0]
[1674230623986,20.0,21.449,21.439,17.0]
[1674230625357,34.97,21.448,21.437,17.0]
[1674230628008,0.96,21.447,21.437,17.0]
[1674230628205,34.98,21.446,21.437,17.0]
[1674230628423,34.97,21.448,21.437,17.0]
[1674230628629,0.96,21.447,21.437,17.0]
[1674230628940,34.98,21.446,21.437,17.0]
[1674230629151,20.0,21.445,21.437,17.0]
[1674230629362,0.96,21.444,21.435,17.0]
[1674230629796,34.98,21.446,21.436,23.75576951]
[1674230630005,0.96,21.448,21.437,17.0]
[1674230630195,35.94,21.447,21.437,17.0]
[1674230630401,0.96,21.447,21.438,10.0]
[1674230630635,0.96,21.446,21.439,17.0]
[1674230630953,34.97,21.449,21.439,17.0]
[1674230633887,34.97,21.449,21.438,17.0]
[1674230636299,34.97,21.449,21.404,177.36523264]
[1674230636624,20.0,21.448,21.43,154.3394]
[1674230636827,34.98,21.447,21.43,119.3394]
[1674230637047,20.96,21.446,21.43,119.3394]
[1674230637361,44.98,21.445,21.43,119.3394]
[1674230637572,20.0,21.444,21.43,119.3394]
[1674230637778,34.98,21.443,21.43,119.3394]
[1674230637986,20.0,21.442,21.43,119.3394]
[1674230638187,34.99,21.441,21.43,119.3394]
[1674230638401,20.0,21.44,21.43,119.3394]
[1674230638616,20.0,21.44,21.431,17.0]
[1674230639140,20.0,21.442,21.431,17.0]
[1674230639360,34.99,21.441,21.431,17.0]
[1674230639563,20.0,21.44,21.431,17.0]
[1674230640181,20.0,21.442,21.431,27.0]
[1674230640397,34.99,21.441,21.431,27.0]
[1674230640611,20.0,21.44,21.431,17.0]
[1674230640834,0.96,21.439,21.431,17.0]
[1674230641242,0.96,21.439,21.431,27.0]
[1674230641563,34.99,21.441,21.431,27.0]
[1674230641765,20.0,21.44,21.431,27.0]
[1674230641982,0.96,21.439,21.431,27.0]
[1674230642182,0.96,21.439,21.432,10.0]
[1674230642391,34.99,21.441,21.428,122.5929]
[1674230642605,40.73,21.44,21.428,122.5929]
[1674230642815,34.99,21.439,21.428,122.5929]
[1674230643035,0.96,21.438,21.428,122.5929]
[1674230643894,0.96,21.438,21.429,17.0]
[1674230644197,19.632554,21.438,21.429,17.0]
[1674230644819,19.632554,21.438,21.43,23.75576951]
[1674230645019,19.632554,21.438,21.432,10.0]
[1674230645230,18.672554,21.438,21.433,52.0]
[1674230645436,426.47886701,21.447,21.434,10.0]
[1674230645643,426.47886701,21.447,21.436,10.0]
[1674230645864,426.47886701,21.447,21.437,17.0]
[1674230646088,426.47886701,21.447,21.438,10.0]
[1674230646300,426.47886701,21.447,21.439,17.0]
[1674230647114,445.14317701,21.447,21.44,10.0]
[1674230647353,445.14317701,21.447,21.441,17.0]
[1674230647751,18.66431,21.447,21.441,17.0]
[1674230647961,18.66431,21.447,21.442,10.0]
[1674230648189,18.66431,21.447,21.443,17.0]
[1674230648610,7.89851,21.447,21.444,10.0]
[1674230648807,96.07235524,21.456,21.446,10.0]
[1674230649019,96.07235524,21.456,21.447,17.0]
[1674230649341,20.0,21.455,21.447,17.0]
[1674230649538,96.07235524,21.456,21.447,17.0]
[1674230649539,34.97,21.454,21.447,17.0]
[1674230649748,34.96,21.455,21.447,17.0]
[1674230649959,96.07235524,21.455,21.447,17.0]
[1674230650601,0.96,21.454,21.447,17.0]
[1674230653217,0.96,21.454,21.446,10.0]
[1674230654809,0.96,21.454,21.447,17.0]
[1674230657124,0.96,21.454,21.446,10.0]
[1674230657322,62.07235524,21.454,21.446,10.0]
[1674230660469,62.07235524,21.454,21.444,10.0]
[1674230660805,54.97,21.453,21.445,17.0]
[1674230661327,61.11235524,21.452,21.445,17.0]
[1674230661541,20.0,21.451,21.445,17.0]
[1674230661720,20.0,21.451,21.439,254.923]
[1674230661934,110.90235524,21.45,21.439,217.933]
[1674230662162,20.0,21.449,21.439,217.933]
[1674230662378,81.11235524,21.449,21.439,217.933]
[1674230662558,96.08235524,21.448,21.435,35.0]
[1674230662770,96.08235524,21.448,21.433,35.0]
[1674230663111,61.11235524,21.447,21.433,35.0]
[1674230663841,34.98,21.446,21.433,35.0]
[1674230665223,34.98,21.446,21.431,35.0]
[1674230665433,0.96,21.445,21.439,17.0]
[1674230666060,0.96,21.445,21.433,35.0]
[1674230666254,34.98,21.444,21.43,45.0]
[1674230666471,20.0,21.443,21.43,10.0]
[1674230666674,34.98,21.442,21.43,10.0]
[1674230666893,20.0,21.441,21.432,8.0]
[1674230667103,35.95,21.44,21.432,8.0]
[1674230667316,20.0,21.439,21.432,8.0]
[1674230667522,20.0,21.439,21.433,17.0]
[1674230668365,0.96,21.438,21.433,17.0]
[1674230669217,20.0,21.439,21.433,17.0]
[1674230669423,20.0,21.44,21.433,17.0]
[1674230670066,63.10568858,21.446,21.433,15.0]
[1674230670246,54.98,21.445,21.433,15.0]
[1674230670578,34.98,21.445,21.434,10.0]
[1674230670981,63.10568858,21.446,21.434,10.0]
[1674230672030,0.96,21.445,21.435,17.0]
[1674230672241,0.96,21.445,21.436,10.0]
[1674230672482,0.96,21.445,21.437,17.0]
[1674230672868,63.10568858,21.446,21.438,8.0]
[1674230673084,112.3455,21.45,21.44,10.0]
[1674230673306,54.97,21.449,21.441,17.0]
[1674230673503,20.0,21.449,21.442,10.0]
[1674230673720,20.0,21.449,21.443,17.0]
[1674230673930,20.0,21.451,21.443,17.0]
[1674230674263,20.0,21.451,21.444,10.0]
[1674230674467,83.10568858,21.451,21.445,17.0]
[1674230675303,0.96,21.45,21.445,17.0]
[1674230675520,34.97,21.449,21.442,10.0]
[1674230675728,98.07568858,21.449,21.442,10.0]
[1674230675941,63.10568858,21.449,21.442,10.0]
[1674230676158,63.10568858,21.449,21.442,8.0]
[1674230677096,0.96,21.448,21.443,17.0]
[1674230678345,63.10568858,21.449,21.444,10.0]
[1674230678565,63.10568858,21.449,21.445,17.0]
[1674230684046,0.96,21.448,21.442,8.0]
[1674230685618,0.96,21.448,21.443,17.0]
[1674230686017,83.10568858,21.454,21.443,17.0]
[1674230686227,34.97,21.453,21.443,17.0]
[1674230686439,20.0,21.452,21.443,17.0]
[1674230686663,0.96,21.451,21.443,17.0]
[1674230688031,64.06568858,21.451,21.443,17.0]
[1674230688247,20.0,21.45,21.443,17.0]
[1674230688645,64.06568858,21.449,21.441,17.0]
[1674230689823,63.10568858,21.448,21.441,17.0]
[1674230690343,0.96,21.447,21.441,17.0]
[1674230693117,64.06568858,21.447,21.437,34.99]
[1674230693427,34.98,21.446,21.433,148.0576]
[1674230693641,0.96,21.445,21.433,148.0576]
[1674230693831,34.98,21.444,21.433,113.0576]
[1674230694041,0.96,21.443,21.433,113.0576]
[1674230694456,0.96,21.443,21.437,17.0]
[1674230694877,0.96,21.443,21.438,10.0]
[1674230695104,34.97,21.449,21.439,17.0]
[1674230696370,10.96,21.448,21.435,10.0]
[1674230696585,54.98,21.447,21.435,10.0]
[1674230696789,92.64457055,21.447,21.435,10.0]
[1674230696984,0.96,21.446,21.435,10.0]
[1674230697637,34.98,21.445,21.435,10.0]
[1674230698164,0.96,21.444,21.435,10.0]
[1674230698354,34.98,21.446,21.437,17.0]
[1674230698572,0.96,21.445,21.437,17.0]
[1674230700762,34.97,21.448,21.437,17.0]
[1674230700976,0.96,21.447,21.438,10.0]
[1674230701190,0.96,21.447,21.439,17.0]
[1674230702235,70.99910371,21.449,21.439,17.0]
[1674230702445,0.96,21.448,21.439,17.0]
[1674230705501,34.98,21.447,21.439,17.0]
[1674230705917,0.96,21.446,21.437,17.0]
[1674230706127,0.96,21.445,21.437,17.0]
[1674230706365,34.97,21.448,21.437,17.0]
[1674230706670,0.96,21.447,21.437,17.0]
[1674230710148,0.96,21.446,21.437,51.99]
[1674230710453,36.02910371,21.449,21.438,10.0]
[1674230710652,0.96,21.448,21.439,17.0]
[1674230712765,36.02910371,21.449,21.439,17.0]
[1674230714041,0.96,21.448,21.439,17.0]
[1674230715381,34.98,21.447,21.434,10.0]
[1674230715607,0.96,21.446,21.434,10.0]
[1674230715829,0.96,21.446,21.432,8.0]
[1674230716014,34.98,21.445,21.432,8.0]
[1674230716224,20.0,21.444,21.432,8.0]
[1674230716434,35.94,21.443,21.432,8.0]
[1674230716666,20.0,21.442,21.432,8.0]
[1674230717190,0.96,21.441,21.432,8.0]
[1674230717402,34.98,21.442,21.432,8.0]
[1674230717721,20.96,21.441,21.432,8.0]
[1674230718233,34.82,21.44,21.428,123.8329]
[1674230718435,34.99,21.439,21.428,10.0]
[1674230718636,0.96,21.438,21.428,10.0]
[1674230718873,20.96,21.438,21.428,10.0]
[1674230720011,20.0,21.438,21.43,10.0]
[1674230720220,20.0,21.442,21.432,10.0]
[1674230720431,20.0,21.444,21.432,45.0]
[1674230720641,20.0,21.444,21.434,10.0]
[1674230721171,0.96,21.443,21.435,17.0]